Workbook

Sheet Home Page
D3: Level 6 Spreadsheet 6N4089
D4: Home Page

Sheet Blank Sheet
C2: Enter Title
A5: Arguments | C5: Explaination | D5: Forumla or Function | E5: Function Name

Sheet Section 2 Notes
D3: Level 6 Spreadsheet 6N4089
D4: Section 2 – Customisation and Printing
D7: To be used in conjunction with Section 2 Notes

Sheet Section 3 Notes
D3: Level 6 Spreadsheet 6N4089
D4: Section 3 – Worksheet Features
D7: To be used in conjunction with Section 3 Notes

Sheet Hyperlinks
C2: Hyperlinks
A5: Arguments | C5: Explaination | D5: Forumla or Function | E5: Function Name
A7: Hyperlinks | C7: Creates a hyperlink to a document or website. Use "" around the URL and Friendly name. This can also be used to link to another cell or worksheet within a workbook. | D7: =HYPERLINK("E:\VEC\6 Level - Advanced Cert in Administration\6N4089 Spreadsheet Level 6\6N4089 Spreadsheets\Section 3 - Worksheet Features","Unit 3") -> Unit 3 | E7: Hyperlink - to a file
D9: =HYPERLINK("http://office.microsoft.com/en-ie/excel-help/hyperlink-function-HP010342583.aspx","More Information") -> More Information | E9: Hyperlink - to a wesite
C13: The second method of insert a hyperlink is to go to Insert Hyperlink. | D13: Section 4 - Formulas and Functions.docx | E13: Inserted Hyperlink from Insert --> Hyperlink
A18: External Reference Workbook | C18: Link to External Data in another Workbook | D18: =SUM('[1]Word Processing 6'!$G$6:$G$19) -> 11 | E18: External Workbook
C22: Google
C23: Section 3 - Worksheet Features\Section 3 - Worksheet Features.docx

Sheet Outline
C2: Outline
A7: Homeroom # | B7: First Name | C7: Last Name | D7: Payment | E7: T-Shirt Color | F7: T-Shirt Size
A8: 105 | B8: Esther | C8: Yaron | D8: 2010-10-07 | E8: Dark Red | F8: Small
A9: 135 | B9: Anisa | C9: Naser | D9: 2010-10-14 | E9: Dark Red | F9: Small
A10: 220-A | B10: Brigid | C10: Ellison | D10: Pending | E10: Dark Red | F10: Small
A11: 105 | B11: Melissa | C11: White | D11: 2010-10-07 | E11: Heather Grey | F11: Small
A12: 220-B | B12: Malik | C12: Reynolds | D12: 2010-10-07 | E12: Heather Grey | F12: Small
A13: 220-B | B13: Windy | C13: Shaw | D13: 2010-10-07 | E13: Heather Grey | F13: Small
A14: 220-A | B14: Christopher | C14: Peyton-Gomez | D14: Pending | E14: White | F14: Small
A15: 220-B | B15: Michael | C15: Lazar | D15: 2010-10-14 | E15: White | F15: Small
E16: Small Count | F16: =SUBTOTAL(3,F8:F15) -> 8
A17: 105 | B17: Christiana | C17: Chen | D17: 2010-10-05 | E17: Dark Red | F17: Medium
A18: 105 | B18: Sidney | C18: Kelly | D18: 2010-10-11 | E18: Dark Red | F18: Medium
A19: 220-A | B19: Chevonne | C19: Means | D19: 2010-10-05 | E19: Dark Red | F19: Medium
A20: 220-B | B20: Samantha | C20: Bell | D20: 2010-10-11 | E20: Dark Red | F20: Medium
A21: 105 | B21: Nathan | C21: Albee | D21: 2010-10-13 | E21: Heather Grey | F21: Medium
A22: 220-B | B22: Avery | C22: Kelly | D22: 2010-10-11 | E22: Heather Grey | F22: Medium
A23: 110 | B23: Matt | C23: Benson | D23: 2010-10-11 | E23: White | F23: Medium
A24: 110 | B24: Gabriel | C24: Del Toro | D24: 2010-10-13 | E24: White | F24: Medium
A25: 135 | B25: James | C25: Panarello | D25: 2010-10-15 | E25: White | F25: Medium
A26: 135 | B26: Chantal | C26: Weller | D26: 2010-10-15 | E26: White | F26: Medium
E27: Medium Count | F27: =SUBTOTAL(3,F17:F26) -> 10
A28: 105 | B28: Derek | C28: MacDonald | D28: Pending | E28: Dark Red | F28: Large
A29: 110 | B29: Kris | C29: Ackerman | D29: 2010-10-01 | E29: Heather Grey | F29: Large
A30: 135 | B30: Jordan | C30: Weller | D30: 2010-10-05 | E30: Heather Grey | F30: Large
A31: 110 | B31: Regina | C31: Olivera | D31: 2010-10-01 | E31: White | F31: Large
A32: 135 | B32: Alex | C32: Yuen | D32: 2010-10-05 | E32: White | F32: Large
E33: Large Count | F33: =SUBTOTAL(3,F28:F32) -> 5
A34: 135 | B34: Lia | C34: Richards | D34: 2010-10-04 | E34: Dark Red | F34: X-Large
A35: 220-B | B35: Karla | C35: Nichols | D35: 2010-10-06 | E35: Dark Red | F35: X-Large
A36: 220-B | B36: Tyrese | C36: Hanlon | D36: 2010-10-04 | E36: Heather Grey | F36: X-Large
A37: 220-A | B37: Juan | C37: Flores | D37: 2010-10-06 | E37: White | F37: X-Large
E38: X-Large Count | F38: =SUBTOTAL(3,F34:F37) -> 4
E39: Grand Count | F39: =SUBTOTAL(3,F8:F37) -> 27

Sheet Scenario
C2: Scenarios
B7: Sales Target | C7: Expense | D7: Profit | F7: Summary
A8: Jan | B8: €25,000.00 | C8: €15,000.00 | D8: =B8-C8 -> €10,000.00
A9: Feb | B9: €30,000.00 | C9: €17,000.00 | D9: €13,000.00
A10: Mar | B10: €30,000.00 | C10: €17,500.00 | D10: €12,500.00
A11: Apr | B11: €40,000.00 | C11: €18,000.00 | D11: €22,000.00
A12: May | B12: €42,000.00 | C12: €19,000.00 | D12: €23,000.00
A13: Jun | B13: €45,000.00 | C13: €21,000.00 | D13: €24,000.00

Sheet Scenario Summary
B2: Scenario Summary
D3: Current Values: | E3: Original Target | F3: 10% Above Original Target | G3: 10% Below Original Target
E4: Created by Rynagh McNally on 17/07/2014 | F4: Created by Rynagh McNally on 17/07/2014 Modified by Rynagh McNally on 17/07/2014 | G4: Created by Rynagh McNally on 17/07/2014 Modified by Rynagh McNally on 17/07/2014
B5: Changing Cells:
C6: $B$8 | D6: €30,250.00 | E6: €25,000.00 | F6: €30,250.00 | G6: €20,250.00
C7: $B$9 | D7: €36,300.00 | E7: €30,000.00 | F7: €36,300.00 | G7: €24,300.00
C8: $B$10 | D8: €36,300.00 | E8: €30,000.00 | F8: €36,300.00 | G8: €24,300.00
C9: $B$11 | D9: €48,400.00 | E9: €40,000.00 | F9: €48,400.00 | G9: €32,400.00
C10: $B$12 | D10: €50,820.00 | E10: €42,000.00 | F10: €50,820.00 | G10: €34,020.00
C11: $B$13 | D11: €45,000.00 | E11: €45,000.00 | F11: €45,000.00 | G11: €45,000.00
B12: Result Cells:
C13: $D$8 | D13: €15,250.00 | E13: €10,000.00 | F13: €15,250.00 | G13: €5,250.00
C14: $D$9 | D14: €19,300.00 | E14: €13,000.00 | F14: €19,300.00 | G14: €7,300.00
C15: $D$10 | D15: €18,800.00 | E15: €12,500.00 | F15: €18,800.00 | G15: €6,800.00
C16: $D$11 | D16: €30,400.00 | E16: €22,000.00 | F16: €30,400.00 | G16: €14,400.00
C17: $D$12 | D17: €31,820.00 | E17: €23,000.00 | F17: €31,820.00 | G17: €15,020.00
C18: $D$13 | D18: €24,000.00 | E18: €24,000.00 | F18: €24,000.00 | G18: €24,000.00
B19: Notes: Current Values column represents values of changing cells at
B20: time Scenario Summary Report was created. Changing cells for each
B21: scenario are highlighted in gray.

Sheet Sorting
C2: Sorting
A8: Sports Shop Football Sales
A10: Club | B10: Shirt | C10: Shorts | D10: Hats
A11: Aston Villa | B11: 325 | C11: 123 | D11: 213
A12: Blackburn | B12: 134 | C12: 24 | D12: 156
A13: Blackburn | B13: 134 | C13: 234 | D13: 108
A14: Chelsea | B14: 231 | C14: 221 | D14: 98
A15: Juventus | B15: 351 | C15: 361 | D15: 106
A16: Leicester | B16: 313 | C16: 225 | D16: 156
A17: Liverpool | B17: 564 | C17: 226 | D17: 346
A18: Manchester | B18: 451 | C18: 112 | D18: 241
A19: Newcastle | B19: 214 | C19: 111 | D19: 115
A21: Sales Sort by Columns
A23: Order | B23: Date | C23: Salesperson | D23: Amount
A24: 1010 | B24: 2014-04-09 | C24: Thomas | D24: €805.50
A25: 1011 | B25: 2014-04-09 | C25: Wells | D25: €270.89
A26: 1012 | B26: 2014-04-09 | C26: Davis | D26: €504.72
A27: 1013 | B27: 2014-04-09 | C27: Cannon | D27: €568.82
A28: 1014 | B28: 2014-04-09 | C28: Charles | D28: €201.74
A29: 1015 | B29: 2014-04-10 | C29: Thomas | D29: €900.93
A30: 1016 | B30: 2014-04-10 | C30: Cannon | D30: €1,500.39
A31: 1017 | B31: 2014-04-10 | C31: Wells | D31: €593.92
A32: 1018 | B32: 2014-04-11 | C32: Davis | D32: €109.35
A33: 1019 | B33: 2014-04-14 | C33: Wells | D33: €307.94
A34: 1020 | B34: 2014-04-15 | C34: Thomas | D34: €487.82
A35: 1021 | B35: 2014-04-15 | C35: Davis | D35: €893.82
A36: 1022 | B36: 2014-04-15 | C36: Thomas | D36: €1,022.49
A37: 1023 | B37: 2014-04-15 | C37: Cannon | D37: €740.82
A38: 1024 | B38: 2014-04-16 | C38: Charles | D38: €1,198.02
A39: 1025 | B39: 2014-04-16 | C39: Wells | D39: €690.93
A40: 1026 | B40: 2014-04-17 | C40: Wells | D40: €783.94
A41: 1027 | B41: 2014-04-17 | C41: Thomas | D41: €404.73
A42: 1028 | B42: 2014-04-17 | C42: Davis | D42: €307.04
A43: 1029 | B43: 2014-04-18 | C43: Davis | D43: €1,690.83
A44: 1030 | B44: 2014-04-18 | C44: Cannon | D44: €300.76
A45: 1031 | B45: 2014-04-19 | C45: Charles | D45: €250.73
A46: 1032 | B46: 2014-04-20 | C46: Charles | D46: €586.03
A47: 1033 | B47: 2014-04-20 | C47: Wells | D47: €607.86
A49: Sales Sort by Rows
A51: Order | B51: 1016 | C51: 1013 | D51: 1014 | E51: 1012 | F51: 1015 | G51: 1010 | H51: 1011
A52: Date | B52: 2014-04-10 | C52: 2014-04-09 | D52: 2014-04-09 | E52: 2014-04-09 | F52: 2014-04-10 | G52: 2014-04-09 | H52: 2014-04-09
A53: Salesperson | B53: Cannon | C53: Cannon | D53: Charles | E53: Davis | F53: Thomas | G53: Thomas | H53: Wells
A54: Amount | B54: €1,500.39 | C54: €568.82 | D54: €201.74 | E54: €504.72 | F54: €900.93 | G54: €805.50 | H54: €270.89
A57: Sort Using a Custom List
A59: Chicken | B59: Steak | C59: Fish | D59: Delivery | E59: Priority
A60: €730.00 | B60: €220.00 | C60: €850.00 | D60: Jun | E60: Low
A61: €1,900.00 | B61: €500.00 | C61: €900.00 | D61: Feb | E61: High
A62: €1,200.00 | B62: €580.00 | C62: €590.00 | D62: Jan | E62: Medium
A63: €850.00 | B63: €760.00 | C63: €780.00 | D63: Mar | E63: High
A64: €500.00 | B64: €775.00 | C64: €1,200.00 | D64: Jun | E64: Low
A65: €2,500.00 | B65: €900.00 | C65: €790.00 | D65: Aug | E65: High
A66: €960.00 | B66: €970.00 | C66: €440.00 | D66: Feb | E66: Low
A67: €980.00 | B67: €990.00 | C67: €980.00 | D67: Aug | E67: Low
A68: €906.00 | B68: €1,050.00 | C68: €920.00 | D68: Dec | E68: Medium
A69: €570.00 | B69: €1,200.00 | C69: €1,080.00 | D69: Apr | E69: High
A70: €670.00 | B70: €12,500.00 | C70: €780.00 | D70: May | E70: Low

Sheet Series & Custom Lists
C2: Series & Custom Lists
A7: Monday | B7: Mon | C7: January | D7: Jan | E7: 1 | F7: 2 | G7: 5 | H7: Question 1 | I7: Product 1
A8: Tuesday | B8: Tue | C8: February | D8: Feb | E8: 2 | F8: 4 | G8: 10 | H8: Question 2 | I8: Product 2
A9: Wednesday | B9: Wed | C9: March | D9: Mar | E9: 3 | F9: 6 | G9: 15 | H9: Question 3 | I9: Product 3
A10: Thursday | B10: Thur | C10: April | D10: Apr | E10: 4 | F10: 8 | G10: 20 | H10: Question 4 | I10: Product 4
A11: Friday | B11: Fri | C11: May | D11: May | E11: 5 | F11: 10 | G11: 25 | H11: Question 5 | I11: Product 5
A12: Saturday | C12: June | E12: 6 | F12: 12
A13: Sunday | C13: July | E13: 7
A14: Monday | C14: August | E14: 8
E15: 9
E16: 10
A19: 09:00:00 | B19: 2007 | C19: 2014-01-15 | D19: Jan | E19: 2007-01-01 | F19: 2014-01-01 | G19: Qtr3 | H19: Text1 | I19: 1st Period
A20: 10:00:00 | B20: 2008 | C20: 2014-04-15 | D20: Apr | E20: 2007-02-01 | F20: 2014-03-01 | G20: Qtr4 | H20: TextA | I20: 2nd Period
A21: 11:00:00 | B21: 2009 | C21: 2014-07-15 | D21: Jul | E21: 2007-03-01 | F21: 2014-05-01 | G21: Qtr1 | H21: Text2 | I21: 3rd Period
A22: 12:00:00 | B22: 2010 | C22: 2014-10-15 | D22: Oct | E22: 2007-04-01 | F22: 2014-07-01 | G22: Qtr2 | H22: TextA | I22: 4th Period
A23: 13:00:00 | B23: 2011 | C23: 2015-01-15 | E23: 2007-05-01 | F23: 2014-09-01 | G23: Qtr3 | H23: Text3 | I23: 5th Period
A24: 14:00:00 | G24: Qtr4 | H24: TextA
G25: Qtr1
C27: Nov
C28: Dec
A29: Monday | B29: 1 | C29: Jan
A30: Tuesday | B30: 3
A31: Wednesday | B31: 5
A32: Thursday | B32: 7
A33: Friday | B33: 9

Sheet Naming Cells
C2: Name Cells
B7: Tax Rate | C7: 17%
A8: Product | B8: Cost | C8: Tax
A9: Table | B9: €45.00 | C9: =B9*TaxRate -> €7.65
A10: Chair | B10: €105.00 | C10: =B10*TaxRate -> €17.85

Sheet Auto Filter
C2: Auto Filter
A8: Order | B8: Date | C8: Salesperson | D8: Amount
A9: 1014 | B9: 2011-06-02 | C9: James | D9: €9,030.00
A10: 1021 | B10: 2011-03-06 | C10: James | D10: €2,630.00
A11: 1033 | B11: 2012-01-07 | C11: James | D11: €460.00
A12: 1042 | B12: 2013-02-03 | C12: James | D12: €4,765.00
A13: 1010 | B13: 2011-06-01 | C13: Jonathon | D13: €752.00
A14: 1015 | B14: 2011-09-04 | C14: Jonathon | D14: €3,870.00
A15: 1019 | B15: 2011-06-05 | C15: Jonathon | D15: €1,780.00
A16: 1022 | B16: 2011-06-07 | C16: Jonathon | D16: €4,501.00
A17: 1025 | B17: 2011-06-09 | C17: Jonathon | D17: €670.00
A18: 1028 | B18: 2011-06-21 | C18: Jonathon | D18: €2,970.00
A19: 1030 | B19: 2011-06-22 | C19: Jonathon | D19: €280.00
A20: 1032 | B20: 2012-01-05 | C20: Jonathon | D20: €4,820.00
A21: 1036 | B21: 2012-01-08 | C21: Jonathon | D21: €2,430.00
A22: 1041 | B22: 2013-02-02 | C22: Jonathon | D22: €3,961.00
A23: 1043 | B23: 2013-02-04 | C23: Jonathon | D23: €1,980.00
A24: 1011 | B24: 2011-06-01 | C24: Mary Jane | D24: €1,690.00
A25: 1013 | B25: 2011-06-02 | C25: Mary Jane | D25: €467.00
A26: 1017 | B26: 2011-06-04 | C26: Mary Jane | D26: €501.00
A27: 1023 | B27: 2011-06-07 | C27: Mary Jane | D27: €2,848.00
A28: 1029 | B28: 2011-06-21 | C28: Mary Jane | D28: €4,270.00
A29: 1035 | B29: 2012-01-07 | C29: Mary Jane | D29: €1,570.00
A30: 1038 | B30: 2012-01-09 | C30: Mary Jane | D30: €925.00
A31: 1040 | B31: 2012-01-14 | C31: Mary Jane | D31: €2,074.00
A32: 1045 | B32: 2013-05-05 | C32: Mary Jane | D32: €780.00
A33: 1012 | B33: 2011-06-02 | C33: Susan | D33: €2,790.00
A34: 1016 | B34: 2011-06-04 | C34: Susan | D34: €840.00
A35: 1020 | B35: 2011-06-06 | C35: Susan | D35: €397.00
A36: 1027 | B36: 2011-06-13 | C36: Susan | D36: €350.00
A37: 1031 | B37: 2012-01-04 | C37: Susan | D37: €570.00
A38: 1037 | B38: 2012-01-09 | C38: Susan | D38: €847.00
A39: 1044 | B39: 2013-02-04 | C39: Susan | D39: €460.00
A40: 1009 | B40: 2011-05-29 | C40: Tommy | D40: €1,245.00
A41: 1018 | B41: 2011-06-05 | C41: Tommy | D41: €1,362.00
A42: 1024 | B42: 2011-06-08 | C42: Tommy | D42: €693.00
A43: 1026 | B43: 2011-06-09 | C43: Tommy | D43: €1,670.00
A44: 1034 | B44: 2012-01-07 | C44: Tommy | D44: €750.00
A45: 1039 | B45: 2012-05-10 | C45: Tommy | D45: €360.00
D46: =SUBTOTAL(9,D9:D45) -> €14,806.00
D48: =SUM(D9:D45) -> €72,358.00

Sheet Advanced Filter
C2: Advanced Filter | G2: For more information on Advanced Filters watch this video:
G3: http://www.youtube.com/watch?v=SU1qGbN6Rs8
A6: One Criteria | J6: Multiple Criteria - AND
A7: Order | B7: Date | C7: Salesperson | D7: Amount | J7: Order | K7: Date | L7: Salesperson | M7: Amount
C8: Susan | K8: >01/01/2011 | L8: Susan | M8: >500
A10: Order | B10: Date | C10: Salesperson | D10: Amount | J10: Order | K10: Date | L10: Salesperson | M10: Amount
A11: 1009 | B11: 2011-05-29 | C11: Tommy | D11: €1,245.00 | J11: 1009 | K11: 2011-05-29 | L11: Tommy | M11: €1,245.00
A12: 1010 | B12: 2011-06-01 | C12: Jonathon | D12: €752.00 | J12: 1010 | K12: 2011-06-01 | L12: Jonathon | M12: €752.00
A13: 1011 | B13: 2011-06-01 | C13: Mary Jane | D13: €1,690.00 | J13: 1011 | K13: 2011-06-01 | L13: Mary Jane | M13: €1,690.00
A14: 1012 | B14: 2011-06-02 | C14: Susan | D14: €2,790.00 | J14: 1012 | K14: 2011-06-02 | L14: Susan | M14: €2,790.00
A15: 1013 | B15: 2011-06-02 | C15: Mary Jane | D15: €467.00 | J15: 1013 | K15: 2011-06-02 | L15: Mary Jane | M15: €467.00
A16: 1014 | B16: 2011-06-02 | C16: James | D16: €9,030.00 | J16: 1014 | K16: 2011-06-02 | L16: James | M16: €9,030.00
A17: 1015 | B17: 2011-09-04 | C17: Jonathon | D17: €3,870.00 | J17: 1015 | K17: 2011-09-04 | L17: Jonathon | M17: €3,870.00
A18: 1016 | B18: 2011-06-04 | C18: Susan | D18: €840.00 | J18: 1016 | K18: 2011-06-04 | L18: Susan | M18: €840.00
A19: 1017 | B19: 2011-06-04 | C19: Mary Jane | D19: €501.00 | J19: 1017 | K19: 2011-06-04 | L19: Mary Jane | M19: €501.00
A20: 1018 | B20: 2011-06-05 | C20: Tommy | D20: €1,362.00 | J20: 1018 | K20: 2011-06-05 | L20: Tommy | M20: €1,362.00
A21: 1019 | B21: 2011-06-05 | C21: Jonathon | D21: €1,780.00 | J21: 1019 | K21: 2011-06-05 | L21: Jonathon | M21: €1,780.00
A22: 1020 | B22: 2011-06-06 | C22: Susan | D22: €397.00 | J22: 1020 | K22: 2011-06-06 | L22: Susan | M22: €397.00
A23: 1021 | B23: 2011-03-06 | C23: James | D23: €2,630.00 | J23: 1021 | K23: 2011-03-06 | L23: James | M23: €2,630.00
A24: 1022 | B24: 2011-06-07 | C24: Jonathon | D24: €4,501.00 | J24: 1022 | K24: 2011-06-07 | L24: Jonathon | M24: €4,501.00
A25: 1023 | B25: 2011-06-07 | C25: Mary Jane | D25: €2,848.00 | J25: 1023 | K25: 2011-06-07 | L25: Mary Jane | M25: €2,848.00
A26: 1024 | B26: 2011-06-08 | C26: Tommy | D26: €693.00 | J26: 1024 | K26: 2011-06-08 | L26: Tommy | M26: €693.00
A27: 1025 | B27: 2011-06-09 | C27: Jonathon | D27: €670.00 | J27: 1025 | K27: 2011-06-09 | L27: Jonathon | M27: €670.00
A28: 1026 | B28: 2011-06-09 | C28: Tommy | D28: €1,670.00 | J28: 1026 | K28: 2011-06-09 | L28: Tommy | M28: €1,670.00
A29: 1027 | B29: 2011-06-13 | C29: Susan | D29: €350.00 | J29: 1027 | K29: 2011-06-13 | L29: Susan | M29: €350.00
A30: 1028 | B30: 2011-06-21 | C30: Jonathon | D30: €2,970.00 | J30: 1028 | K30: 2011-06-21 | L30: Jonathon | M30: €2,970.00
A31: 1029 | B31: 2011-06-21 | C31: Mary Jane | D31: €4,270.00 | J31: 1029 | K31: 2011-06-21 | L31: Mary Jane | M31: €4,270.00
A32: 1030 | B32: 2011-06-22 | C32: Jonathon | D32: €280.00 | J32: 1030 | K32: 2011-06-22 | L32: Jonathon | M32: €280.00
A33: 1031 | B33: 2012-01-04 | C33: Susan | D33: €570.00 | J33: 1031 | K33: 2012-01-04 | L33: Susan | M33: €570.00
A34: 1032 | B34: 2012-01-05 | C34: Jonathon | D34: €4,820.00 | J34: 1032 | K34: 2012-01-05 | L34: Jonathon | M34: €4,820.00
A35: 1033 | B35: 2012-01-07 | C35: James | D35: €460.00 | J35: 1033 | K35: 2012-01-07 | L35: James | M35: €460.00
A36: 1034 | B36: 2012-01-07 | C36: Tommy | D36: €750.00 | J36: 1034 | K36: 2012-01-07 | L36: Tommy | M36: €750.00
A37: 1035 | B37: 2012-01-07 | C37: Mary Jane | D37: €1,570.00 | J37: 1035 | K37: 2012-01-07 | L37: Mary Jane | M37: €1,570.00
A38: 1036 | B38: 2012-01-08 | C38: Jonathon | D38: €2,430.00 | J38: 1036 | K38: 2012-01-08 | L38: Jonathon | M38: €2,430.00
A39: 1037 | B39: 2012-01-09 | C39: Susan | D39: €847.00 | J39: 1037 | K39: 2012-01-09 | L39: Susan | M39: €847.00
A40: 1038 | B40: 2012-01-09 | C40: Mary Jane | D40: €925.00 | J40: 1038 | K40: 2012-01-09 | L40: Mary Jane | M40: €925.00
A41: 1039 | B41: 2012-05-10 | C41: Tommy | D41: €360.00 | J41: 1039 | K41: 2012-05-10 | L41: Tommy | M41: €360.00
A42: 1040 | B42: 2012-01-14 | C42: Mary Jane | D42: €2,074.00 | J42: 1040 | K42: 2012-01-14 | L42: Mary Jane | M42: €2,074.00
A43: 1041 | B43: 2013-02-02 | C43: Jonathon | D43: €3,961.00 | J43: 1041 | K43: 2013-02-02 | L43: Jonathon | M43: €3,961.00
A44: 1042 | B44: 2013-02-03 | C44: James | D44: €4,765.00 | J44: 1042 | K44: 2013-02-03 | L44: James | M44: €4,765.00
A45: 1043 | B45: 2013-02-04 | C45: Jonathon | D45: €1,980.00 | J45: 1043 | K45: 2013-02-04 | L45: Jonathon | M45: €1,980.00
A46: 1044 | B46: 2013-02-04 | C46: Susan | D46: €460.00 | J46: 1044 | K46: 2013-02-04 | L46: Susan | M46: €460.00
A47: 1045 | B47: 2013-05-05 | C47: Mary Jane | D47: €780.00 | J47: 1045 | K47: 2013-05-05 | L47: Mary Jane | M47: €780.00
A51: Multiple Criteria - AND with a range | J51: Multiple Criteria - OR
A53: Order | B53: Date | C53: Salesperson | D53: Amount | E53: Amount | J53: Order | K53: Date | L53: Salesperson | M53: Amount
B54: >01/01/2011 | C54: Susan | D54: <1000 | E54: >500 | K54: >01/01/2011 | L54: Susan | M54: >500
K55: >01/01/2011 | L55: Mary Jane | M55: >500
A56: Order | B56: Date | C56: Salesperson | D56: Amount
A57: 1009 | B57: 2011-05-29 | C57: Tommy | D57: €1,245.00 | J57: Order | K57: Date | L57: Salesperson | M57: Amount | O57: Order | P57: Date | Q57: Salesperson | R57: Amount
A58: 1010 | B58: 2011-06-01 | C58: Jonathon | D58: €752.00 | J58: 1009 | K58: 2011-05-29 | L58: Tommy | M58: €1,245.00 | O58: 1011 | P58: 2011-06-01 | Q58: Mary Jane | R58: €1,690.00
A59: 1011 | B59: 2011-06-01 | C59: Mary Jane | D59: €1,690.00 | J59: 1010 | K59: 2011-06-01 | L59: Jonathon | M59: €752.00 | O59: 1012 | P59: 2011-06-02 | Q59: Susan | R59: €2,790.00
A60: 1012 | B60: 2011-06-02 | C60: Susan | D60: €2,790.00 | J60: 1011 | K60: 2011-06-01 | L60: Mary Jane | M60: €1,690.00 | O60: 1016 | P60: 2011-06-04 | Q60: Susan | R60: €840.00
A61: 1013 | B61: 2011-06-02 | C61: Mary Jane | D61: €467.00 | J61: 1012 | K61: 2011-06-02 | L61: Susan | M61: €2,790.00 | O61: 1017 | P61: 2011-06-04 | Q61: Mary Jane | R61: €501.00
A62: 1014 | B62: 2011-06-02 | C62: James | D62: €9,030.00 | J62: 1013 | K62: 2011-06-02 | L62: Mary Jane | M62: €467.00 | O62: 1023 | P62: 2011-06-07 | Q62: Mary Jane | R62: €2,848.00
A63: 1015 | B63: 2011-09-04 | C63: Jonathon | D63: €3,870.00 | J63: 1014 | K63: 2011-06-02 | L63: James | M63: €9,030.00 | O63: 1029 | P63: 2011-06-21 | Q63: Mary Jane | R63: €4,270.00
A64: 1016 | B64: 2011-06-04 | C64: Susan | D64: €840.00 | J64: 1015 | K64: 2011-09-04 | L64: Jonathon | M64: €3,870.00 | O64: 1031 | P64: 2012-01-04 | Q64: Susan | R64: €570.00
A65: 1017 | B65: 2011-06-04 | C65: Mary Jane | D65: €501.00 | J65: 1016 | K65: 2011-06-04 | L65: Susan | M65: €840.00 | O65: 1035 | P65: 2012-01-07 | Q65: Mary Jane | R65: €1,570.00
A66: 1018 | B66: 2011-06-05 | C66: Tommy | D66: €1,362.00 | J66: 1017 | K66: 2011-06-04 | L66: Mary Jane | M66: €501.00 | O66: 1037 | P66: 2012-01-09 | Q66: Susan | R66: €847.00
A67: 1019 | B67: 2011-06-05 | C67: Jonathon | D67: €1,780.00 | J67: 1018 | K67: 2011-06-05 | L67: Tommy | M67: €1,362.00 | O67: 1038 | P67: 2012-01-09 | Q67: Mary Jane | R67: €925.00
A68: 1020 | B68: 2011-06-06 | C68: Susan | D68: €397.00 | J68: 1019 | K68: 2011-06-05 | L68: Jonathon | M68: €1,780.00 | O68: 1040 | P68: 2012-01-14 | Q68: Mary Jane | R68: €2,074.00
A69: 1021 | B69: 2011-03-06 | C69: James | D69: €2,630.00 | J69: 1020 | K69: 2011-06-06 | L69: Susan | M69: €397.00 | O69: 1045 | P69: 2013-05-05 | Q69: Mary Jane | R69: €780.00
A70: 1022 | B70: 2011-06-07 | C70: Jonathon | D70: €4,501.00 | J70: 1021 | K70: 2011-03-06 | L70: James | M70: €2,630.00
A71: 1023 | B71: 2011-06-07 | C71: Mary Jane | D71: €2,848.00 | J71: 1022 | K71: 2011-06-07 | L71: Jonathon | M71: €4,501.00
A72: 1024 | B72: 2011-06-08 | C72: Tommy | D72: €693.00 | J72: 1023 | K72: 2011-06-07 | L72: Mary Jane | M72: €2,848.00
A73: 1025 | B73: 2011-06-09 | C73: Jonathon | D73: €670.00 | J73: 1024 | K73: 2011-06-08 | L73: Tommy | M73: €693.00
A74: 1026 | B74: 2011-06-09 | C74: Tommy | D74: €1,670.00 | J74: 1025 | K74: 2011-06-09 | L74: Jonathon | M74: €670.00
A75: 1027 | B75: 2011-06-13 | C75: Susan | D75: €350.00 | J75: 1026 | K75: 2011-06-09 | L75: Tommy | M75: €1,670.00
A76: 1028 | B76: 2011-06-21 | C76: Jonathon | D76: €2,970.00 | J76: 1027 | K76: 2011-06-13 | L76: Susan | M76: €350.00
A77: 1029 | B77: 2011-06-21 | C77: Mary Jane | D77: €4,270.00 | J77: 1028 | K77: 2011-06-21 | L77: Jonathon | M77: €2,970.00
A78: 1030 | B78: 2011-06-22 | C78: Jonathon | D78: €280.00 | J78: 1029 | K78: 2011-06-21 | L78: Mary Jane | M78: €4,270.00
A79: 1031 | B79: 2012-01-04 | C79: Susan | D79: €570.00 | J79: 1030 | K79: 2011-06-22 | L79: Jonathon | M79: €280.00
A80: 1032 | B80: 2012-01-05 | C80: Jonathon | D80: €4,820.00 | J80: 1031 | K80: 2012-01-04 | L80: Susan | M80: €570.00
A81: 1033 | B81: 2012-01-07 | C81: James | D81: €460.00 | J81: 1032 | K81: 2012-01-05 | L81: Jonathon | M81: €4,820.00
A82: 1034 | B82: 2012-01-07 | C82: Tommy | D82: €750.00 | J82: 1033 | K82: 2012-01-07 | L82: James | M82: €460.00
A83: 1035 | B83: 2012-01-07 | C83: Mary Jane | D83: €1,570.00 | J83: 1034 | K83: 2012-01-07 | L83: Tommy | M83: €750.00
A84: 1036 | B84: 2012-01-08 | C84: Jonathon | D84: €2,430.00 | J84: 1035 | K84: 2012-01-07 | L84: Mary Jane | M84: €1,570.00
A85: 1037 | B85: 2012-01-09 | C85: Susan | D85: €847.00 | J85: 1036 | K85: 2012-01-08 | L85: Jonathon | M85: €2,430.00
A86: 1038 | B86: 2012-01-09 | C86: Mary Jane | D86: €925.00 | J86: 1037 | K86: 2012-01-09 | L86: Susan | M86: €847.00
A87: 1039 | B87: 2012-05-10 | C87: Tommy | D87: €360.00 | J87: 1038 | K87: 2012-01-09 | L87: Mary Jane | M87: €925.00
A88: 1040 | B88: 2012-01-14 | C88: Mary Jane | D88: €2,074.00 | J88: 1039 | K88: 2012-05-10 | L88: Tommy | M88: €360.00
A89: 1041 | B89: 2013-02-02 | C89: Jonathon | D89: €3,961.00 | J89: 1040 | K89: 2012-01-14 | L89: Mary Jane | M89: €2,074.00
A90: 1042 | B90: 2013-02-03 | C90: James | D90: €4,765.00 | J90: 1041 | K90: 2013-02-02 | L90: Jonathon | M90: €3,961.00
A91: 1043 | B91: 2013-02-04 | C91: Jonathon | D91: €1,980.00 | J91: 1042 | K91: 2013-02-03 | L91: James | M91: €4,765.00
A92: 1044 | B92: 2013-02-04 | C92: Susan | D92: €460.00 | J92: 1043 | K92: 2013-02-04 | L92: Jonathon | M92: €1,980.00
A93: 1045 | B93: 2013-05-05 | C93: Mary Jane | D93: €780.00 | J93: 1044 | K93: 2013-02-04 | L93: Susan | M93: €460.00
J94: 1045 | K94: 2013-05-05 | L94: Mary Jane | M94: €780.00

Sheet Advanced Filter Unique Records
C2: Advanced Filter Unique Records | G2: For more information on Advanced Filters watch this video:
G3: http://www.youtube.com/watch?v=SU1qGbN6Rs8
A8: Order | B8: Date | C8: Salesperson | D8: Amount
A9: 1009 | B9: 2011-05-29 | C9: Tommy | D9: €1,245.00 | F9: Salesperson
A10: 1010 | B10: 2011-06-01 | C10: Jonathon | D10: €752.00 | F10: Tommy
A11: 1011 | B11: 2011-06-01 | C11: Mary Jane | D11: €1,690.00 | F11: Jonathon
A12: 1012 | B12: 2011-06-02 | C12: Susan | D12: €2,790.00 | F12: Mary Jane
A13: 1013 | B13: 2011-06-02 | C13: Mary Jane | D13: €467.00 | F13: Susan
A14: 1014 | B14: 2011-06-02 | C14: James | D14: €9,030.00 | F14: James
A15: 1015 | B15: 2011-09-04 | C15: Jonathon | D15: €3,870.00
A16: 1016 | B16: 2011-06-04 | C16: Susan | D16: €840.00
A17: 1017 | B17: 2011-06-04 | C17: Mary Jane | D17: €501.00
A18: 1018 | B18: 2011-06-05 | C18: Tommy | D18: €1,362.00
A19: 1019 | B19: 2011-06-05 | C19: Jonathon | D19: €1,780.00
A20: 1020 | B20: 2011-06-06 | C20: Susan | D20: €397.00
A21: 1021 | B21: 2011-03-06 | C21: James | D21: €2,630.00
A22: 1022 | B22: 2011-06-07 | C22: Jonathon | D22: €4,501.00
A23: 1023 | B23: 2011-06-07 | C23: Mary Jane | D23: €2,848.00
A24: 1024 | B24: 2011-06-08 | C24: Tommy | D24: €693.00
A25: 1025 | B25: 2011-06-09 | C25: Jonathon | D25: €670.00
A26: 1026 | B26: 2011-06-09 | C26: Tommy | D26: €1,670.00
A27: 1027 | B27: 2011-06-13 | C27: Susan | D27: €350.00
A28: 1028 | B28: 2011-06-21 | C28: Jonathon | D28: €2,970.00
A29: 1029 | B29: 2011-06-21 | C29: Mary Jane | D29: €4,270.00
A30: 1030 | B30: 2011-06-22 | C30: Jonathon | D30: €280.00
A31: 1031 | B31: 2012-01-04 | C31: Susan | D31: €570.00
A32: 1032 | B32: 2012-01-05 | C32: Jonathon | D32: €4,820.00
A33: 1033 | B33: 2012-01-07 | C33: James | D33: €460.00
A34: 1034 | B34: 2012-01-07 | C34: Tommy | D34: €750.00
A35: 1035 | B35: 2012-01-07 | C35: Mary Jane | D35: €1,570.00
A36: 1036 | B36: 2012-01-08 | C36: Jonathon | D36: €2,430.00
A37: 1037 | B37: 2012-01-09 | C37: Susan | D37: €847.00
A38: 1038 | B38: 2012-01-09 | C38: Mary Jane | D38: €925.00
A39: 1039 | B39: 2012-05-10 | C39: Tommy | D39: €360.00
A40: 1040 | B40: 2012-01-14 | C40: Mary Jane | D40: €2,074.00
A41: 1041 | B41: 2013-02-02 | C41: Jonathon | D41: €3,961.00
A42: 1042 | B42: 2013-02-03 | C42: James | D42: €4,765.00
A43: 1043 | B43: 2013-02-04 | C43: Jonathon | D43: €1,980.00
A44: 1044 | B44: 2013-02-04 | C44: Susan | D44: €460.00
A45: 1045 | B45: 2013-05-05 | C45: Mary Jane | D45: €780.00

Sheet Section 4 Notes
D3: Level 6 Spreadsheet 6N4089
D4: Section 4 – Formulae and Functions
D7: To be used in conjunction with Sction 4 Notes

Sheet Section 5 Notes
D3: Level 6 Spreadsheet 6N4089
D4: Section 5 – Charts and Pivot Tables
D7: To be used in conjunction with Section 5 Notes

Sheet Chart
C2: Charts
A5: SBS Page 88
A7: Club Fundraising
B9: Target | C9: Actual
A10: January | B10: €2,000 | C10: €1,800
A11: February | B11: €5,000 | C11: €4,200
A12: March | B12: €8,000 | C12: €6,950
A13: April | B13: €12,000 | C13: €10,250
A14: May | B14: €16,000 | C14: €12,870
A15: June | B15: €2,000 | C15: €15,500

Sheet Chart Area
C2: Chart Area
A7: Month | B7: Value
A8: Jan | B8: 110
A9: Feb | B9: 98
A10: Mar | B10: 85
A11: Apr | B11: 45
A12: May | B12: 54
A13: Jun | B13: 70
A14: Jul | B14: 23
A15: Aug | B15: 10
A16: Sep | B16: 5
C26: \

Sheet Chart Objects Added
B2: Chart with Objects Added
A7: Sales Comparison
A9: Shoe Shop Outlets
A11: Shop Location | B11: Sales | D11: Location:
A12: Grafton Street | B12: €1.2 | D12: Dublin
A13: Jervis Shopping Centre | B13: €1.3 | D13: Dublin
A14: Powers Court | B14: €0.8 | D14: Dublin
A15: Park Street | B15: £1.2 | D15: Bristol
A16: Victoria Square | B16: £2.0 | D16: Belfast
A17: Oxford Street | B17: £2.6 | D17: London
A18: Bond Street | B18: £1.8 | D18: London

Sheet Chart Lower Neg Line
C2: Chart Lower Negative Line

Sheet Trendline
C2: Trendline Starting at 0
A5: Trendline
A8: Age | B8: Number of People
A9: 0 Years | B9: 0
A10: 10 Years | B10: 15
A11: 20 Years | B11: 16
A12: 30 Years | B12: 51
A13: 40 Years | B13: 55
A14: 50 Years | B14: 70
A15: 60 Years | B15: 75

Sheet Gantt Chart
C2: Timeline Gantt Chart
A5: Trendline
B9: Start Date | C9: Completed | E9: End Date | I9: Scale
A10: Ethics Submission | B10: 2012-09-01 | C10: =E10-B10 -> 60 | E10: 2012-10-31 | K10: Vertical Axis | L10: Categories in Reverse Order
A11: Familirisation with EMG | B11: 2012-11-01 | C11: 59 | E11: 2012-12-30 | H11: Start Date | I11: 41153 | K11: Horizontal Value Axis | L11: Minimum 41153 Maximum 41517
A12: Recruitment of Subjects | B12: 2013-01-01 | C12: 58 | E12: 2013-02-28 | H12: End Date | I12: =E19 -> 41517 | K12: Stacked Column | L12: Series 1 set to no fill
A13: Pilot Testing | B13: 2013-01-01 | C13: 30 | E13: 2013-01-31
A14: Testing of Subjects | B14: 2013-02-01 | C14: 88 | E14: 2013-04-30
A15: Data Anyalsis | B15: 2013-04-01 | C15: 60 | E15: 2013-05-31
A16: Drafting of Thesis | B16: 2013-06-01 | C16: 60 | E16: 2013-07-31
A17: Draft Submission to Safe Assign | B17: 2013-07-01 | C17: 30 | E17: 2013-07-31
A18: Corrections of Draft | B18: 2013-07-01 | C18: 61 | E18: 2013-08-31
A19: Submission of Thesis | B19: 2013-08-01 | C19: 30 | E19: 2013-08-31

Sheet House

Sheet Conditional Formatting
C2: Conditional Formatting
A4: See Section 2 Notes
A5: Formatting
A6: Data Bars | B6: 25
B7: 3
B8: 52
B9: 23
B10: 3
B11: 85
B12: 45
B13: 23
B14: 5
B15: 16
B16: 45
A18: Colour Scale
B20: English | C20: Irish | D20: Maths | E20: Geography | F20: German
A21: Mary Smith | B21: 47 | C21: 67 | D21: 58 | E21: 35 | F21: 65
A22: Tom Treanor | B22: 56 | C22: 76 | D22: 92 | E22: 58 | F22: 23
A23: Catherine Walsh | B23: 87 | C23: 87 | D23: 48 | E23: 78 | F23: 65
A24: Seamus Divine | B24: 54 | C24: 59 | D24: 46 | E24: 76 | F24: 78
A25: Alan McGuinness | B25: 38 | C25: 89 | D25: 73 | E25: 69 | F25: 72
A26: Gertie McNally | B26: 37 | C26: 65 | D26: 38 | E26: 59 | F26: 49
A29: Icon Sets
B31: English | C31: Irish | D31: Maths | E31: Geography | F31: German
A32: Mary Smith | B32: 47 | C32: 67 | D32: 58 | E32: 35 | F32: 65
A33: Tom Treanor | B33: 56 | C33: 76 | D33: 92 | E33: 58 | F33: 23
A34: Catherine Walsh | B34: 87 | C34: 87 | D34: 48 | E34: 78 | F34: 65
A35: Seamus Divine | B35: 54 | C35: 59 | D35: 46 | E35: 76 | F35: 78
A36: Alan McGuinness | B36: 38 | C36: 89 | D36: 73 | E36: 69 | F36: 72
A37: Gertie McNally | B37: 37 | C37: 65 | D37: 38 | E37: 59 | F37: 49
A39: Icon Sets
B41: English | C41: Irish | D41: Maths | E41: Geography | F41: German
A42: Mary Smith | B42: 47 | C42: 67 | D42: 58 | E42: 35 | F42: 65
A43: Tom Treanor | B43: 56 | C43: 76 | D43: 92 | E43: 58 | F43: 23
A44: Catherine Walsh | B44: 87 | C44: 87 | D44: 48 | E44: 78 | F44: 65
A45: Seamus Divine | B45: 54 | C45: 59 | D45: 46 | E45: 76 | F45: 78
A46: Alan McGuinness | B46: 38 | C46: 89 | D46: 73 | E46: 69 | F46: 72
A47: Gertie McNally | B47: 37 | C47: 65 | D47: 38 | E47: 59 | F47: 49

Sheet Dates and Times
C2: DATES AND TIMES
A5: Arguments | C5: Explaination | D5: Forumla or Function | E5: Function Name
C6: Shows todays Date | D6: =TODAY() -> 2015-09-16 | E6: Today
C7: Shows todays Date and Time | D7: =NOW() -> 42263.67256 | E7: Now
C8: Shows the day of the month as a number. | D8: =DAY(D6) -> 16 | E8: Day
A9: 2013-11-07 | B9: 2013-11-28 | C9: Subtract two days from each other | D9: =DAY(B9)-DAY(A9) -> 21 | E9: Day - Day
B10: 2013-07-28 | C10: Shows the month as a number from 1 - 12. | D10: =MONTH(B10) -> 7 | E10: Month | F10: 1982-01-08
A11: 2013-05-01 | B11: 2013-09-28 | C11: Subtract two months from each other | D11: =MONTH(B11)-MONTH(A11) -> 4 | E11: Month - Month
B12: 2013-11-20 | C12: Shows the year as a number. | D12: =YEAR(D6) -> 2015 | E12: Year
A13: 2004-04-15 | B13: 2013-05-28 | C13: Subtract two years from each other. | D13: =YEAR(B13)-YEAR(A13) -> 9 | E13: Year - Year
C14: TEXT and NOW | D14: ="The current time is "&TEXT(NOW(),"h:mm AM/PM") -> The current time is 4:08 pm
A15: 1982-01-08 | B15: 2012-11-07 | C15: Take two dates from each other | D15: =B15-A15 -> 11261 | E15: Days
A16: 1982-01-08 | B16: 2012-11-07 | C16: Take two months from each other | D16: =MONTH(B16)-MONTH(A16) -> 10 | E16: Months
C17: Take two years from each other | D17: =YEAR(B16)-YEAR(A16) -> 30 | E17: Years
C18: Age in Months | D18: =(YEAR(B16)-YEAR(A16))*12+(MONTH(B16)-MONTH(A16)) -> 370 | E18: Month + Year
C19: Date Format Applied 'dddd' | D19: 1982-01-08
B20: 2013-11-27 | C20: Shows the day as a number | D20: =WEEKDAY(B20,2) -> 3 | E20: Weekday
C21: Pay Date: | D21: =TODAY() -> 2015-09-16 | E21: TODAY
C22: Week Number: | D22: =WEEKNUM(D21) -> 38 | E22: WEEKNUM
C23: Nested if to show the day based on weekday | D23: =IF(D20=1,"Sunday",IF(D20=2,"Monday",IF(D20=3,"Tuesday",IF(D20=4,"Wednesday",IF(D20=5,"Thursday",IF(D20=6,"Friday","Saturday")))))) -> Tuesday | E23: Nested IF
A24: 2012-11-07 | B24: 2012-09-01 | C24: Dated if to count number of days | D24: =DATEDIF(B24,A24,"d") -> 67 | E24: DatedIF Days
C25: Dated if to count number of months | D25: =DATEDIF(B24,A24,"M") -> 2 | E25: DatedIF Months
C26: Dated if to count number of years | D26: =DATEDIF(B24,A24,"y") -> 0 | E26: DatedIF Years
A27: Started: | B27: 2012-09-01 | C27: Calculate networking days Exclude holidays | D27: =NETWORKDAYS(B27,B28,B29:B33) -> 788 | E27: Networkdays
A28: Today: | B28: =TODAY() -> 2015-09-16 | C28: Networkdays with a different weekend (Hairdresers) | D28: =NETWORKDAYS.INTL(B27,B28,12,B29:B30) -> 951 | E28: Networkdays.intl
A29: Mid Term: | B29: 2012-10-29
B30: 2012-10-30
B31: 2012-10-31
B32: 2012-11-01 | F32: Today Function =today()
A33: End Mid-Term: | B33: 2012-11-02
B34: 2012-01-01 | C34: Add on Years to a Date - 2 Years | D34: =DATE(YEAR(B34)+2,MONTH(B34),DAY(B34)) -> 2014-01-01 | E34: Date with Year, Month, Day
C35: Add on Months to a Date - 30 Months | D35: =DATE(YEAR(B34),MONTH(B34)+30,DAY(B34)) -> 2014-07-01 | E35: Date with Year, Month, Day
C36: Add on Days to a Date - 42 days (6 weeks) | D36: =DATE(YEAR(B34),MONTH(B34),DAY(B34)+42) -> 2012-02-12 | E36: Date with Year, Month, Day
F37: Today Function =today()
A38: Try it Yourself Examples | D38: Answer Here | E38: Result | F38: Show Answers
B40: Q1 | C40: Enter a function to show today's date: | E40: =IF(D40=""," ",IF(D40=M40,"Correct","Try Again")) ->  | F40: Today Function =today() | M40: =TODAY() -> 2015-09-16
E41: =IF(D41=""," ",IF("=today()","Correct","Try Again")) -> 
C42: Enter your Date of birth in D34: | D42: 1982-01-08
B44: Q2 | C44: How many Days old are you?
B45: Q3 | C45: How many Months old are you?
B46: Q4 | C46: How many Years old are you?
B47: Q5 | C47: Convert your birthday to a Weekday number.
B48: Q6 | C48: What day of the week were you born on?

Sheet Range Union Intersection 3D
B2: Range, Union, Intersection and 3D Reference Operators
A6: Explaination | C6: Forumla or Function | D6: Function Name | F6: Data
A7: Group of Cells used in a formula. | C7: =SUM(F8:H11) -> 242 | D7: Range | F7: Row 1 | G7: Row 2 | H7: Row 3
A8: More than one group of cells using - comma | C8: =SUM(F8:F11,H8:H11) -> 212 | D8: Union | F8: 7 | G8: 20 | H8: 5
A9: Where group of cells overlap - space | C9: =SUM(F8:G11 G8:H11) -> 30 | D9: Intersection | F9: 45 | G9: 3 | H9: 45
A10: 3D Working across worksheets. | C10: =SUM('Dates and Times:Range Union Intersection 3D'!C7:C8) -> 454 | D10: 3D | F10: 1 | G10: 2 | H10: 33
C11: e.g. =sum(Sheet1:Sheet3!C7:C8) | F11: 22 | G11: 5 | H11: 54
A14: Meaning (Example) | F14: Reference Operator
A15: Range, produces one reference to all the cells between two cells, including the two cell references (B5:B15) | F15: : (colon)
A16: Union, combines multiple references into one reference (SUM(B5:B15,D5:D15)) | F16: , (comma)
A17: Intersection, produces one reference to cells common to the two references (B7:D7 C6:C8) | F17: (space)
A18: 3D, creates a range which refers cells on different worksheets =SUM(Sheet1:Sheet3!C7:C8)

Sheet IF Statements
C2: IF Statements
A4: See Section 4 Notes
A5: Arguments | C5: Explaination | D5: Forumla or Function | E5: Function Name
E6: Simple IF
E30: Nested IF
E51: AND OR NOT

Sheet Lookup
C2: Lookups
A7: VLOOKUP
A9: Phone ID | B9: Product | C9: Unit Price | D9: Quantity in Stock | F9: Type in Phone ID | G9: 10857
A10: 10234 | B10: Samsung Noire | C10: 99 | D10: 45
A11: 10235 | B11: Sony Ericsson F305 | C11: 99 | D11: 51
A12: 10245 | B12: Samsung Adidas MiCoach | C12: 99 | D12: 23
A13: 10556 | B13: Motorola W230 | C13: 29 | D13: 53
A14: 10857 | B14: Samsung J700 | C14: 59 | D14: 35
A15: 10987 | B15: Sony Ericsson C905 | C15: 389 | D15: 15
A16: 11983 | B16: Samsung L700 Purple | C16: 89 | D16: 23 | F16: Mobile | G16: =VLOOKUP(G9,Phones,2,FALSE) -> Samsung J700 | H16: VLOOKUP
A17: 12576 | B17: Samsung Tocco Pink | C17: 269 | D17: 20 | F17: Unit Price | G17: =VLOOKUP(G9,Phones,3,FALSE) -> 59 | H17: VLOOKUP
A18: 12985 | B18: Sony Ericsson T303 | C18: 59 | D18: 64 | F18: Qty in Stock | G18: =VLOOKUP(G9,Phones,4,FALSE) -> 35 | H18: VLOOKUP
A19: 19883 | B19: Nokia 5220 | C19: 119 | D19: 31
A21: HLOOKUP
A23: Location | B23: Gort | C23: Headford | D23: Loughrea | E23: Oughterard | F23: Tuam
A24: Contact | B24: Mark O Shea | C24: Peter Flynn | D24: Sue Barrett | E24: Tina Moore | F24: John Lynch
A25: Distance | B25: 19 | C25: 16 | D25: 28 | E25: 15 | F25: 22
B27: Rate per Mile | C27: €0.75
A29: Date | B29: Location | C29: Contact | D29: Distance | E29: Expenses
A30: 2003-08-04 | B30: Tuam | C30: =HLOOKUP(B30,Distance,2,FALSE) -> John Lynch | D30: =HLOOKUP(B30,Distance,3,FALSE) -> 22 | E30: =D30*$C$27 -> €16.50 | F30: HLOOKUP
A31: 2003-08-04 | B31: Headford | F31: Absolute Cell Referencing
A32: 2003-08-05 | B32: Loughrea
A33: 2003-08-05 | B33: Gort
A34: 2003-08-05 | B34: Oughterard

Sheet Mathematical Functions
C2: Mathematical Functions
A4: See Section 4 Notes
A5: Arguments | C5: Explaination | D5: Forumla or Function | E5: Function Name
A6: INT | B6: -45.9856321 | C6: Rounds a number down to the nearest integer. | D6: =INT(B6) -> -46 | E6: INT
A7: POWER | B7: 4 | C7: Returns a number raised to a power. | D7: =POWER(B7,2) -> 16 | E7: POWER
A8: ROUND | B8: 45.98568211 | C8: Rounds anumber to a specified number of digits. | D8: =ROUND(B8,4) -> 45.9857 | E8: ROUND
B9: 89.2232123 | C9: Rounds a number up away from zero. | D9: =ROUNDUP(B9,3) -> 89.224 | E9: ROUNDUP
B10: 45.897456 | C10: Rounds a number down, toward zero. | D10: =ROUNDDOWN(B10,2) -> 45.89 | E10: ROUNDDOWN
A11: Square Root | B11: 22500 | C11: Returns the positive Square Root of a number. | D11: =SQRT(B11) -> 150 | E11: SQRT
B12: 50625 | D12: =SQRT(B12) -> 225 | E12: SQRT
B13: 90000 | D13: =SQRT(B13) -> 300 | E13: SQRT
A14: SUM | B14: 21 | C14: Add the numbers in a range of cells. | D14: =SUM(B14:B17) -> 175 | E14: SUM
B15: 51
B16: 58
B17: 45
A18: RAND | C18: Generates a Random number between 0 and 1. | D18: =RAND() -> 0.8557250655 | E18: RAND
C19: Multiply by 100 to get a whole number. | D19: =RAND()*100 -> 88.3977134 | E19: RAND
A20: RANDBETWEEN | C20: Returns a random number between those specified. | D20: =RANDBETWEEN(1,111) -> 71 | E20: RANDBETWEEN
A21: EVEN | B21: 1.8 | C21: Rounds a number up to the nearest even integer. | D21: =EVEN(B21) -> 2 | E21: EVEN
B22: 3 | D22: =EVEN(B22) -> 4 | E22: EVEN
B23: 2.15 | D23: =EVEN(B23) -> 4 | E23: EVEN
B24: -1.5 | C24: When the number is negative it rounds away from zero. | D24: =EVEN(B24) -> -2 | E24: EVEN
B25: -6.9 | D25: =EVEN(B25) -> -8 | E25: EVEN
A26: ODD | B26: 1.5 | C26: Rounds a number up to the nearest odd integer. | D26: =ODD(B26) -> 3 | E26: ODD
B27: 3 | D27: =ODD(B27) -> 3 | E27: ODD
B28: 2.15 | D28: 3 | E28: ODD
B29: -1.5 | C29: When the number is negative it rounds away from zero. | D29: -3 | E29: ODD
B30: -6.9 | D30: =ODD(B30) -> -7 | E30: ODD
A34: Try it Yourself Examples | D34: Answer Here | E34: Result | F34: Show Answers
A35: Question 1
A36: Product ID | B36: Weight (grams) | C36: Rounded Down Using INT
A37: 1 | B37: 125.361
A38: 2 | B38: 25.6542
A39: 3 | B39: 124.895
A40: 4 | B40: 32.654
A41: 5 | B41: 21.5984
A42: 6 | B42: 12.354
A43: 7 | B43: 45.976
A44: 8 | B44: 56.456
A46: Question 2
A47: 1 | B47: Kilobyte equals | C47: = POWER(2,10)*A40
A48: 1 | B48: Megabyte equals | C48: = POWER(2,20)*A41
A49: 1 | B49: Gigabyte | C49: = POWER(2,30)*A42
A51: Using the above information covert the following to Bytes using POWER:
A52: 512 | B52: Kilobyte Cache = | E52: Bytes
A53: 256 | B53: Megabytes of RAM = | E53: Bytes
A54: 16 | B54: Megabytes Video Memory = | E54: Bytes
A55: 40 | B55: Gigabyte Hard Disk = | E55: Bytes
A57: Question 3
A58: Calculate the area of each of the following circiles using POWER:
A59: Circle Radius (cm) | B59: Area
A60: 25
A61: 54
A62: 12
A63: 89
A64: 31
A68: SUMIF
A70: Monday Sales
A72: Customer | B72: Product | C72: Amount
A73: Tony Leahy | B73: Apples | C73: 250 | D73: 1 | E73: =SUMIF(C73:C81,">=200",D73:D81) -> 9 | F73: Example with comparison operator.
A74: Sinead Donovan | B74: Bananas | C74: 100 | D74: 2
A75: Peter Smith | B75: Apples | C75: 300 | D75: 3
A76: Stephen Connors | B76: Pears | C76: 75 | D76: 4
A77: Seamus O'Neill | B77: Bananas | C77: 80 | D77: 5
A78: Gary Jennings | B78: Bananas | C78: 150 | D78: 1
A79: Mike Healy | B79: Apples | C79: 200 | D79: 2
A80: Eileen Carr | B80: Pears | C80: 300 | D80: 3
A81: Christine Flynn | B81: Apples | C81: 50 | D81: 4
A83: Total Sales of Apples | C83: =SUMIF(B73:B81,"Apples",C73:C81) -> 800
A84: Total Sales of Bananas | C84: =SUMIF(B73:B81,"Bananas",C73:C81) -> 330
A85: Total Sales of Pears | C85: =SUMIF(B73:B81,"Pears",C73:C81) -> 375

Sheet Statistical Functions
C2: Statistical Functions
A6: AVERAGE | B6: 21 | C6: Average number of a list of numbers.
B7: 51
B8: 24
B9: 3
B10: 18
B11: =AVERAGE(B6:B10) -> 23.4
A14: AVERAGEIF | B14: Product A | C14: 54
B15: Product A | C15: 26
B16: Product C | C16: 84
B17: Product B | C17: 16
B18: Product A | C18: 4
C19: =AVERAGEIF(C14:C18,">50") -> 69 | D19: Average if number is greater than 50.
C20: =AVERAGEIF(B14:B18,"Product A",C14:C18) -> 28 | D20: Average if product is Product A.
A24: MAX | B24: 48 | D24: MIN | E24: 48
B25: 51 | E25: 51
B26: 5.12354 | E26: 5.12354
B27: 45678 | E27: 45678
B28: -123546 | E28: -123546
B29: =MAX(B24:B28) -> 45678 | E29: =MIN(E24:E28) -> -123546
A33: COUNT | C33: 4 | D33: 5 | E33: Counts the number of cells that contain numbers.
D34: 3
B35: 1 | D35: 1
C36: 24
B37: =COUNT(B33:D36) -> 6
A41: COUNTA | B41: Seventeen | C41: A | E41: Counts any cells that are not empty.
B42: 4 | C42: 6 | D42: l
D43: 8
B44: 0 | C44: Twenty four
C45: Mary
B46: =COUNTA(B41:D45) -> 9
A48: COUNTIF | F48: COUNTIF
C49: 7 | D49: 6 | H49: 7 | I49: Cat
B50: 7 | C50: 8 | D50: 7 | G50: Cat | H50: 8 | I50: Dog
B51: 7 | G51: Cat
D52: 7 | I52: Cat
B54: =COUNTIF(B48:D53,7) -> 5 | G54: =COUNTIF(G48:I53,"Cat") -> 4
A57: COUNTIF | B57: Apples | C57: 32
B58: Apples | C58: 54
B59: Oranges | C59: 62
B60: Peaches | C60: 12
B61: Apples | C61: 54
B62: Peaches | C62: 36
B63: Oranges | C63: 54
B64: =COUNTIF(B57:B63,"Apples") -> 3 | C64: Apples
B65: =COUNTIF(B57:B63,B59) -> 2 | C65: Oranges using B59
B66: =COUNTIF(B57:B63,B58)+COUNTIF(B57:B63,B59) -> 5 | C66: Apples and Oranges
B67: =COUNTIF(C57:C63,">40") -> 4 | C67: Cells with value greater than 40
B68: =COUNTIF(C57:C63,"<>"&C61) -> 4 | C68: Number of cells not equal to 54.
B69: =COUNTIF(C57:C63,">=30")-COUNTIF(C57:C63,">50") -> 2 | C69: Number of cells greater than or equal to 30 and less than 50
A73: MEDIAN | B73: 2
B74: 7
B75: 15
B76: 13
B77: 16
B78: =MEDIAN(B72:B77) -> 13
A82: MODE | B82: 21
B83: 45
B84: 12
B85: 21
B86: 65
B87: 35
B88: 12
B89: =_xlfn.MODE.SNGL(B82:B88) -> 21
A93: SMALL | B93: 45
B94: 87
B95: 2
B96: 12
B97: 65
B98: 32
B99: =SMALL(B93:B98,3) -> 32 | C99: 2nd Smallest Number on the List

Sheet Text Functions
C2: Text Functions
A6: CONCATENATE | C6: First Name | D6: Surname | E6: Address | F6: Balance
C7: Tom | D7: Treanor | E7: Clontibret | F7: €32.00
C8: Mary | D8: McKenna | E8: Clones | F8: €45.00
C9: Jane | D9: Kerr | E9: Magheracloone | F9: €65.00
B11: =CONCATENATE(C7," ",D7) -> Tom Treanor
B12: =CONCATENATE(C8," ",D8," from ",E8," owes €",F8,".") -> Mary McKenna from Clones owes €45.
B13: =C7&" "&D7 -> Tom Treanor | C13: The ampersand can also be used to join text.
A16: LEFT | B16: Mary | C16: =LEFT(B16) -> M
B17: Mr McKenna | C17: =LEFT(B17,2) -> Mr
B18: Sale Price | C18: =LEFT(B18,4) -> Sale
A22: LOWER | B22: AlPHAbet Soup | C22: =LOWER(B22) -> alphabet soup
B23: Sara | C23: =LOWER(B23) -> sara
B24: THREE 3 | C24: three 3
A28: MID | B28: Drove 340 miles | C28: =MID(B28,7,3) -> 340
B29: Drove 273 miles | C29: =MID(B29,7,3) -> 273
B30: Drove 234 miles | C30: 234
A34: PROPER | B34: this SENTENCE IS not propER | D34: =PROPER(B34) -> This Sentence Is Not Proper
B35: mARY jONES | D35: =PROPER(B35) -> Mary Jones
B36: 15 green lane | D36: =PROPER(B36) -> 15 Green Lane
B37: TRIAL BALANCE | D37: =PROPER(B37) -> Trial Balance
A41: RIGHT | B41: Right Price | C41: =RIGHT(B41,5) -> Price
B42: Green | C42: =RIGHT(B42) -> n
B43: 273 miles | C43: =RIGHT(B43,5) -> miles
A47: TRIM | B47: When text has spaces that are not needed use TRIM!
B48: =TRIM(B47) -> When text has spaces that are not needed use TRIM!
A52: UPPER | B52: income tax | C52: =UPPER(B52) -> INCOME TAX
B53: Green Lane | C53: =UPPER(B53) -> GREEN LANE
B54: mAry jones | C54: MARY JONES
A58: REPT | B58: James | C58: =REPT(B58,3) -> James James James

Sheet Financial Functions
C2: Financial Functions
A5: Arguments | C5: Explaination | D5: Forumla or Function | E5: Function Name
A7: DB | C7: Depreciation of assets.
A9: Example 1 | C9: DB - Depreciation
C11: Asset | D11: Company Van | F11: Pruchase Price | G11: €20,000.00
F12: Disposal Price | G12: €5,000.00
F13: Expected Life (years): | G13: 5
C15: Year 1 Depreciation | D15: =DB($G$11,$G$12,$G$13,1) -> €4,840.00 | E15: Value after year 1 | G15: =G11-D15 -> €15,160.00
C16: Year 2 Depreciation | D16: =DB($G$11,$G$12,$G$13,2) -> €3,668.72 | E16: Value after year 2 | G16: =G15-D16 -> €11,491.28
C17: Year 3 Depreciation | D17: =DB($G$11,$G$12,$G$13,3) -> €2,780.89 | E17: Value after year 3 | G17: =G16-D17 -> €8,710.39
C18: Year 4 Depreciation | D18: =DB($G$11,$G$12,$G$13,4) -> €2,107.91 | E18: Value after year 4 | G18: =G17-D18 -> €6,602.48
C19: Year 5 Depreciation | D19: =DB($G$11,$G$12,$G$13,5) -> €1,597.80 | E19: Value after year 5 | G19: =G18-D19 -> €5,004.68
A21: Example 2 | C21: DB - Depreciation
C23: Depreciation Schedule
C25: Asset | D25: Company Car | E25: Machinery | F25: Computer | G25: Truck
C26: Purchase Price | D26: 34500 | E26: 120000 | F26: 900 | G26: 42800
C27: Disposal Value | D27: 8500 | E27: 20000 | F27: 300 | G27: 12500
C28: Expected Life (years) | D28: 5 | E28: 8 | F28: 4 | G28: 6
C30: Year 1 Depreciation | D30: =DB($D$26,$D$27,$D$28,1) -> €8,418.00 | E30: =DB($E$26,$E$27,$E$28,1) -> €24,120.00 | F30: =DB($F$26,$F$27,$F$28,1) -> €216.00 | G30: =DB($G$26,$G$27,$G$28,1) -> €7,918.00
C31: Year 2 Depreciation | D31: =DB($D$26,$D$27,$D$28,2) -> €6,364.01 | E31: =DB($E$26,$E$27,$E$28,2) -> €19,271.88 | F31: =DB($F$26,$F$27,$F$28,2) -> €164.16 | G31: =DB($G$26,$G$27,$G$28,2) -> €6,453.17
C32: Year 3 Depreciation | D32: =DB($D$26,$D$27,$D$28,3) -> €4,811.19 | E32: =DB($E$26,$E$27,$E$28,3) -> €15,398.23 | F32: =DB($F$26,$F$27,$F$28,3) -> €124.76 | G32: =DB($G$26,$G$27,$G$28,3) -> €5,259.33
C33: Year 4 Depreciation | D33: =DB($D$26,$D$27,$D$28,4) -> €3,637.26 | E33: =DB($E$26,$E$27,$E$28,4) -> €12,303.19 | F33: =DB($F$26,$F$27,$F$28,4) -> €94.82 | G33: =DB($G$26,$G$27,$G$28,4) -> €4,286.36
C34: Year 5 Depreciation | D34: =DB($D$26,$D$27,$D$28,5) -> €2,749.77 | E34: =DB($E$26,$E$27,$E$28,5) -> €9,830.25 | G34: =DB($G$26,$G$27,$G$28,5) -> €3,493.38
C35: Year 6 Depreciation | E35: =DB($E$26,$E$27,$E$28,6) -> €7,854.37 | G35: =DB($G$26,$G$27,$G$28,6) -> €2,847.11
C36: Year 7 Depreciation | E36: =DB($E$26,$E$27,$E$28,7) -> €6,275.64
C37: Year 8 Depreciation | E37: =DB($E$26,$E$27,$E$28,8) -> €5,014.24
C38: Depreiciation + Disposal | D38: =SUM(D30:D37)+D27 -> €34,480.23 | E38: =SUM(E30:E37)+E27 -> €120,067.79 | F38: =SUM(F30:F37)+F27 -> €899.74 | G38: =SUM(G30:G37)+G27 -> €42,757.35
A40: Example 3 | C40: DB - Depreciation
C42: Fixed Assets | D42: Premises | E42: Machinery | F42: Vechiles
C43: Cost | D43: £350,000.00 | E43: £75,000 | F43: £220,000
C44: Depreciation | D44: =DB(350000,150000,20,20) -> £6,477.47 | E44: =DB(75000,25000,5,5) -> £6,143.13 | F44: =DB(220000,30000,4,4) -> £19,382.93
C45: NBV | D45: =D43-D44 -> £343,522.53 | E45: =E43-E44 -> £68,856.87 | F45: =F43-F44 -> £200,617.07
A48: FV | C48: Future value of pension/investment scheme.
A49: Example 1
A50: Data | C50: Description
A51: 0.06 | C51: Annual Interest Rate | D51: rate
A52: 10 | C52: Number of Payments | D52: nper
A53: -200 | C53: Amount of the payment | D53: pmt
A54: -500 | C54: Present value | D54: pv
A55: 1 | C55: Payment is due at the beginning of the period. | D55: type
A57: Result | C57: Description
A58: =FV(A51/12,A52,A53,A54,A55) -> €2,581.40 | C58: Future value of an investment using the terms from A2:A5.
A60: Example 2 | C60: Savings Fund for employees
C61: Savings | D61: 20
C62: Interest | D62: 3.20%
C63: Ten Year Period | D63: 120
D64: =FV(D62/12,D63,-D61) -> €2,824.06
A67: NPV | C67: Net Present Value
A68: Example 1
A69: Data | C69: Description
A70: 0.1 | C70: Annual Discount Rate | D70: rate
A71: -€10,000.00 | C71: Initial cost of investment one year from today. | D71: value1
A72: €3,000.00 | C72: Return from the first year. | D72: value2
A73: €4,200.00 | C73: Return from the second year. | D73: value3
A74: €6,800.00 | C74: Return from the third year. | D74: value4
A76: Result | C76: Description
A77: =NPV(A70,A71,A72,A73,A74) -> €1,188.44 | C77: Future value of an investment using the terms from A2:A5.
A80: Example 2 | C80: Stocking Loan Details | D80: Description
C81: 0.04 | D81: Interest Rate
C82: -€20,000.00 | D82: Loan Value
C83: €5,000.00 | D83: payments year 1
C84: €2,000.00 | D84: payments year 2
C85: =NPV(C81,C83:C84)+C82 -> -€13,343.20 | D85: Balance
A88: PMT | C88: Principle per month of a loan repayment.
A89: Example 1
A90: Data | C90: Description
A91: 6% | C91: Annual Interest Rate | D91: rate
A92: 180 | C92: Number of months of payment | D92: nper
A93: €180,000 | C93: Amount of loan | D93: pv
A95: Result | C95: Description
A96: =PMT(A91/12,A92,A93) -> -€1,518.94 | C96: Monthly payment for a loan with terms specified as arguments in A91:A93, payments are due at the beginning of the month.
A99: Example 2
A100: PPMT | C100: Amount of Principle paid off Bank Loan
C102: Bank Loan | E102: € 50,000.00
C103: Annual Interest Rate | E103: 7%
C104: Number of Years of Loan | E104: 10
C105: Payment Date | E105: End of Each Month
C106: Month of Payment | E106: 5th
C108: Bank Loan | D108: Annual Interest Rate | E108: Number of Yrs of Loan | F108: Amount of Priniciple Paid off
C109: €50,000.00 | D109: 7% | E109: 10 | F109: =PPMT(7%/12,5,10*12,-50000,0,0) -> €295.68
A112: PV | C112: Present Value
A114: Data | C114: Description
A115: €500.00 | C115: Money paid out of an insurance annuity at the end of every month. | D115: pmt
A116: 8% | C116: Interest rate earned on the money paid out. | D116: rate
A117: 20 | C117: Years the money will be paid out. | D117: nper*12
A119: Result | C119: Description
A120: =PV(A116/12,12*A117,A115,,0) -> -€59,777.15 | C120: Present value of an annuity with the terms A115:A117.
A124: SLN | C124: Straight Line Depreciation of an asset for one period.
A126: Example 1 | C126: Vehicle | D126: Original Cost
C127: Red Transit - MN 10 444 | D127: €45,000.00
C128: White Toyota MN 09 434 | D128: €32,000.00
C129: Blue People Carrier MN 10 585 | D129: €36,000.00
A131: Life (Years) | C131: Salvage Value | D131: Annual Depreciation
A132: 7 | C132: €5,000.00 | D132: =SLN(D127,C132,A132) -> €5,714.29
A133: 7 | C133: €3,000.00 | D133: =SLN(D128,C133,A133) -> €4,142.86
A134: 7 | C134: €4,000.00 | D134: =SLN(D129,C134,A134) -> €4,571.43
A137: Example 2 | C137: SLN - Straight Line Depreciation
C139: Cost | D139: €10,000.00
C140: Salvage value | D140: €1,000.00
C141: Life - Years of useful life | D141: 10
C143: Depreciation Value
C144: Period | D144: SLN | E144: Value
C145: 1 | D145: =SLN($D$139,$D$140,$D$141) -> €900.00 | E145: =$D$139-D145 -> €9,100.00 | F145: Subtract this value 10 times and the asset depreciates from 10,000 to 1,000 in to years.
C146: 2 | D146: €900.00 | E146: =E145-D146 -> €8,200.00
C147: 3 | D147: €900.00 | E147: =E146-D147 -> €7,300.00
C148: 4 | D148: €900.00 | E148: €6,400.00
C149: 5 | D149: €900.00 | E149: €5,500.00
C150: 6 | D150: €900.00 | E150: €4,600.00
C151: 7 | D151: €900.00 | E151: €3,700.00
C152: 8 | D152: €900.00 | E152: €2,800.00
C153: 9 | D153: €900.00 | E153: €1,900.00
C154: 10 | D154: €900.00 | E154: €1,000.00
C159: References:
C160: 5 Different Types of Depreciaton
C161: http://www.excel-easy.com/examples/depreciation.html

Sheet Database Functions
C2: Database Functions
A6: Database
A8: Date | B8: Order ID | C8: SalesRep | D8: Customer | E8: Sale
B9: 21553 | C9: Beth | D9: DB Foods
A11: Date | B11: Order ID | C11: SalesRep | D11: Customer | E11: Sale
A12: 2014-06-15 | B12: 21543 | C12: John | D12: DB Foods | E12: €12,563.00 | G12: DAVERAGE | H12: =DAVERAGE(SalesDB,E8,C8:C9) -> €6,201.60 | I12: The average sale for Beth.
A13: 2014-06-16 | B13: 21544 | C13: Beth | D13: Value Buy | E13: €4,500.00 | G13: DCOUNT | H13: =DCOUNT(SalesDB,E8,D8:D9) -> 5 | I13: The number of times DB Foods bought products from us.
A14: 2014-06-19 | B14: 21545 | C14: Simon | D14: DB Foods | E14: €6,423.00 | G14: DCOUNTA | H14: =DCOUNTA(SalesDB,E8,E8:E9) -> 17 | I14: Counts the total number of sales.
A15: 2014-06-19 | B15: 21546 | C15: John | D15: MC Ltd. | E15: €1,245.00 | G15: DGET | H15: =DGET(SalesDB,E8,B8:B9) -> €1,258.00 | I15: Gets the sale total for Order ID 21553.
A16: 2014-06-19 | B16: 21547 | C16: Simon | D16: Treanors | E16: €3,489.00 | G16: DMAX | H16: =DMAX(SalesDB,E8,C8:C9) -> €12,563.00 | I16: The maximum sale for Beth.
A17: 2014-06-21 | B17: 21548 | C17: John | D17: Value Buy | E17: €1,568.00 | G17: DMIN | H17: =DMIN(SalesDB,E8,C8:C9) -> €892.00 | I17: The minimum sale for Beth.
A18: 2014-06-23 | B18: 21549 | C18: Beth | D18: MC Ltd. | E18: €11,489.00
A19: 2014-06-23 | B19: 21550 | C19: Beth | D19: Treanors | E19: €1,564.00
A20: 2014-06-25 | B20: 21551 | C20: John | D20: DB Foods | E20: €25,250.00
A21: 2014-06-27 | B21: 21552 | C21: Simon | D21: Wholesale | E21: €3,549.00
A22: 2014-06-30 | B22: 21553 | C22: Simon | D22: MC Ltd. | E22: €1,258.00
A23: 2014-07-01 | B23: 21554 | C23: John | D23: DB Foods | E23: €4,985.00
A24: 2014-07-01 | B24: 21555 | C24: John | D24: Treanors | E24: €2,587.00
A25: 2014-07-02 | B25: 21556 | C25: Simon | D25: DB Foods | E25: €3,451.00
A26: 2014-07-02 | B26: 21557 | C26: Beth | D26: Value Buy | E26: €892.00
A27: 2014-07-02 | B27: 21558 | C27: Simon | D27: Value Buy | E27: €10,456.00
A28: 2014-07-05 | B28: 21559 | C28: Beth | D28: MC Ltd. | E28: €12,563.00

Sheet Section 6 Notes
D3: Level 6 Spreadsheet 6N4089
D4: Section 6 – Macros and Auditing

Sheet Trace Errors
C2: Trace Errors
B8: Value Error | D8: Ref Error
B9: 20
B10: 50 | D10: 98
B11: 90 | D11: 0
B12: 25 | D12: =D10/D11 -> 
B13: O
B14: 14
B15: =B9+B10+B11+B12+B13+B14 -> 

Sheet Section 7 Notes
D3: Level 6 Spreadsheet 6N4089
D4: Section 7 – Data Validation and Protection

Sheet Data Validation
C2: Data Validation
A4: See Section 7 Notes
A5: Arguments | C5: Explaination | D5: Forumla or Function | E5: Function Name
D7: Employee | G7: Eileen
A8: Data Validation in a drop down list. | D8: Sarah | G8: Jane
D9: Yes / No | G9: Mary
A10: Data Validation with a drop down list. | D10: Yes | G10: Sarah
G11: Theresa
A12: Data Vailidation between two numbers - Whole number within limits | D12: 44 | G12: Thomas | H12: 150
H13: 99
A14: Decimal Number within Limits - Bonus no greater than 6% of Salary. | D14: Salary | E14: €50,000.00 | H14: 54
D15: Bonus | E15: 20 | H15: 62
H16: 89
A17: Date within a time frame - Today, tomorrow or the day after. | D17: Today | E17: =TODAY() -> 2015-09-16 | H17: 35
D18: 2014-07-30 | H18: =AVERAGE(H12:H17) -> 81.5 | I18: Average
A21: Date between two dates - 01/01/2010 and 01/01/2020. | D21: 2014-05-01
A23: Time within a time frame - within the next 5 hours. | D23: Time | E23: 09:00:00
D24: 08:00:00 | H24: Maximum Budget | J24: €500.00
D26: Limit to 5 Characters | H26: Total Spent | J26: 450
A27: Text of a specified length. | D27: Mr
A31: Only numbers greater than the average. | D31: 68

Sheet Protect Cells in a Worksheet
C2: Protect Cells in a Worksheet
A4: See Section 7 Notes
A8: Code | B8: Furniture Item | C8: Quantity Bought | D8: Cost Price per Item | E8: Total Cost Price per Item | F8: Selling Price per Item | G8: Total Selling Price per Item | H8: Profit on Each Item | K8: Password: | L8: pass
A9: HG7654 | B9: Tables | C9: 60 | D9: €95.00 | E9: =C9*D9 -> €5,700.00 | F9: €120.00 | G9: =C9*F9 -> €7,200.00 | H9: =G9-E9 -> €1,500.00
A10: KL9876 | B10: Chairs | C10: 85 | D10: €88.00 | E10: =C10*D10 -> €7,480.00 | F10: €130.00 | G10: =C10*F10 -> €11,050.00 | H10: =G10-E10 -> €3,570.00 | K10: Unprotected Cells are:
A11: LP9876 | B11: Cabinets | C11: 96 | D11: €56.00 | E11: €5,376.00 | F11: €80.00 | G11: €7,680.00 | H11: €2,304.00 | K11: A9:D15
A12: YT9876 | B12: Dressers | C12: 52 | D12: €79.00 | E12: €4,108.00 | F12: €90.00 | G12: €4,680.00 | H12: €572.00 | K12: F9:D15
A13: JT7654 | B13: Hall Tables | C13: 73 | D13: €51.00 | E13: €3,723.00 | F13: €77.00 | G13: €5,621.00 | H13: €1,898.00
A14: KJ7654 | B14: Telephone Tables | C14: 55 | D14: €63.00 | E14: €3,465.00 | F14: €80.00 | G14: €4,400.00 | H14: €935.00
A15: LO9808 | B15: Mirrors | C15: 90 | D15: €80.00 | E15: €7,200.00 | F15: €100.00 | G15: €9,000.00 | H15: €1,800.00

Sheet References
B4: 300 Excel Examples
B5: http://www.excel-easy.com/examples.html
